bitfinex/quotes_ETHUSD_20240924
["timestamp","ask_amount","ask_price","bid_price","bid_amount"]
[1727141838801,0.7595,2637.2,2636.8,3.86830638]
[1727141839001,0.7595,2637.2,2636.8,0.07583638]
[1727141839647,0.7595,2637.2,2636.8,3.86828638]
[1727141839846,0.7595,2637.5,2636.9,0.07583331]
[1727141840148,0.7595,2637.5,2636.9,3.86815331]
[1727141840517,4.55097,2637.5,2636.9,0.07583331]
[1727141840850,4.55097,2637.5,2636.3,0.7762]
[1727141840851,3.79193,2637.2,2636.3,0.7762]
[1727141841011,0.7595,2637.4,2636.5,3.90633961]
[1727141841220,0.7595,2637.4,2636.8,3.79237]
[1727141841405,0.7595,2637.4,2636.9,0.07583148]
[1727141841601,3.79147,2637.5,2636.9,0.7762]
[1727141841799,0.8080476,2637.7,2636.9,0.7762]
[1727141841800,3.79168,2637.4,2636.9,0.85202781]
[1727141842001,3.79168,2637.4,2636.9,0.07582781]
[1727141842256,3.79174,2637.4,2636.7,0.07583184]
[1727141842755,0.8080476,2637.7,2636.8,3.79247]
[1727141842928,0.8080476,2637.7,2636.6,4.56892]
[1727141842929,3.79162,2637.4,2636.6,4.56892]
[1727141843129,0.8080476,2637.7,2636.6,0.7762]
[1727141843343,0.8080476,2637.7,2636.3,3.46825396]
[1727141843344,3.79243,2636.9,2636.3,0.7762]
[1727141843504,6.79147,2637.5,2636.7,3.79249]
[1727141843505,3.79172,2637.4,2636.7,3.79249]
[1727141843705,3.79172,2637.4,2636.8,0.07583214]
[1727141844517,4.55097,2637.5,2636.9,0.07583214]
[1727141845004,3.79176,2637.3,2636.8,0.0758319]
[1727141845211,4.55101,2637.5,2636.9,0.07583792]
[1727141845409,0.7595,2637.5,2637.0,3.79218]
[1727141845633,0.7595,2637.5,2637.1,0.07582755]
[1727141846883,3.8397576,2637.7,2637.1,0.07582755]
[1727141847085,3.8397576,2637.7,2636.6,3.0]
[1727141847086,3.79184,2637.3,2636.6,3.0]
[1727141847239,3.79184,2637.3,2636.6,6.79272]
[1727141847562,3.7915,2637.5,2636.7,3.86843385]
[1727141847736,3.79162,2637.4,2636.7,3.86843385]
[1727141847938,3.7915,2637.5,2636.8,3.79242]
[1727141847939,0.7595,2637.3,2636.8,3.79242]
[1727141848176,3.7915,2637.5,2636.9,0.07583325]
[1727141848751,3.79167,2637.4,2636.9,0.07583325]
[1727141849362,3.7915,2637.5,2636.9,0.07583325]
[1727141849568,3.79177,2637.3,2636.7,3.79261]
[1727141849865,3.79177,2637.3,2636.5,8.47536961]
[1727141849866,3.792,2637.2,2636.8,0.07583385]
[1727141850392,3.792,2637.2,2636.5,4.569]
[1727141850677,0.7595,2637.0,2636.4,0.07584409]
[1727141850976,0.7595,2637.0,2636.4,3.79292]
[1727141851181,0.7595,2637.0,2636.4,3.86876399]
[1727141851483,4.55108,2637.5,2636.8,0.7762]
[1727141851655,3.79185,2637.3,2636.8,0.7762]
[1727141851974,3.79185,2637.3,2636.8,0.85203373]
[1727141852335,3.79214,2637.1,2636.5,0.7762]
[1727141852539,3.79214,2637.1,2636.6,0.07584007]
[1727141853342,3.7917,2637.4,2636.8,3.79243]
[1727141853580,0.7595,2637.5,2636.9,0.07583228]
[1727141853769,0.0485476,2637.7,2637.3,3.79175]
[1727141853969,0.0485476,2637.7,2637.4,0.07582045]
[1727141854885,0.0485476,2637.7,2637.3,0.85201313]
[1727141855038,3.8398276,2637.7,2637.0,3.0]
[1727141855239,4.55083,2637.6,2637.0,3.0]
[1727141855436,4.55083,2637.6,2636.9,0.7762]
[1727141855437,3.79156,2637.5,2636.9,0.7762]
[1727141855675,3.79176,2637.3,2636.7,3.79256]
[1727141855873,3.79176,2637.3,2636.6,4.24070001]
[1727141856075,3.79173,2637.4,2636.6,8.03344001]
[1727141856284,3.79173,2637.4,2636.7,3.8684423]
[1727141856452,3.79173,2637.4,2636.7,0.0758323]
[1727141856820,3.79173,2637.4,2636.4,3.90633961]
[1727141856821,3.79201,2637.2,2636.4,3.79302]
[1727141856968,3.79201,2637.2,2636.4,4.249842]
[1727141857171,3.79201,2637.2,2636.5,0.07583939]
[1727141857845,3.79201,2637.2,2636.5,3.86873939]
[1727141858577,3.79201,2637.2,2636.4,4.249842]
[1727141858780,7.58404,2637.2,2636.4,4.249842]
[1727141858955,3.79201,2637.2,2636.5,0.07583947]
[1727141859276,3.79205,2637.1,2636.5,0.07583947]
[1727141859896,4.5517,2637.0,2636.4,4.249842]
[1727141860043,0.7595,2637.0,2636.4,4.249842]
[1727141860380,0.7595,2637.0,2636.5,0.07584127]
[1727141860619,3.79239,2636.9,2636.5,0.07584028]
[1727141860881,3.79242,2636.9,2636.5,0.07584791]
[1727141861084,3.79242,2636.9,2636.1,0.07584697]
[1727141861239,0.7595,2637.0,2636.1,0.07584697]
[1727141861240,0.7595,2637.0,2636.3,3.79319]
[1727141861443,4.55169,2637.0,2636.4,3.86877262]
[1727141861896,0.7595,2637.0,2636.5,3.79287]
[1727141862190,3.792,2637.2,2636.6,0.07584137]
[1727141862345,4.5513,2637.3,2636.6,3.86858137]
[1727141863187,4.5513,2637.3,2636.6,4.64468137]
[1727141863355,4.5513,2637.3,2636.7,0.07583917]
[1727141863555,0.7595,2637.3,2636.7,0.07583917]
[1727141863885,3.79217,2637.1,2636.7,0.07583917]
[1727141864087,3.79217,2637.1,2636.5,3.7929]
[1727141864287,3.79217,2637.1,2636.6,0.07584012]
[1727141865498,4.55131,2637.3,2636.6,4.63475713]
[1727141865651,0.7639,2637.6,2637.1,3.79204]
[1727141865985,0.0485476,2637.7,2637.2,3.86761416]
[1727141866146,0.0485476,2637.7,2637.6,4.54182]
[1727141866351,0.0485476,2637.7,2637.6,0.07580628]
[1727141866549,0.0485476,2637.7,2637.4,3.79147]
[1727141866748,0.0485476,2637.7,2637.5,0.0758137]
[1727141867689,0.0485476,2637.7,2637.5,3.8672737]
[1727141867995,0.0485476,2637.7,2637.6,4.63300786]
[1727141868496,0.0485476,2637.7,2637.6,4.55719437]
[1727141868696,0.0485476,2637.7,2637.6,3.86712986]
[1727141869548,0.0485476,2637.7,2637.4,3.79147]
[1727141869755,0.0485476,2637.7,2637.5,0.07581261]
[1727141870594,0.0485476,2637.7,2637.6,4.61763536]
[1727141870807,0.0485476,2637.7,2637.6,5.4585589]
[1727141871969,0.0485476,2637.7,2637.6,5.38274354]
[1727141872167,0.0485476,2637.7,2637.4,3.79148]
[1727141872479,0.0485476,2637.7,2637.5,3.86726124]
[1727141873194,0.0485476,2637.7,2637.3,3.79165]
[1727141873511,0.0485476,2637.7,2637.6,3.79132]
[1727141874113,0.0485476,2637.7,2637.6,3.86713063]
[1727141874403,0.0485476,2637.7,2637.6,4.63300069]
[1727141874612,0.0485476,2637.7,2637.6,4.55719006]
[1727141874980,0.0485476,2637.7,2637.4,3.79147]
[1727141875309,0.0485476,2637.7,2636.9,3.79219]
[1727141875310,0.0485476,2637.7,2637.5,0.07581193]
[1727141875521,0.0485476,2637.7,2637.3,3.79173]
[1727141875696,0.0485476,2637.7,2637.3,0.07582093]
[1727141875900,0.0485476,2637.7,2637.3,3.86750093]
[1727141876212,3.79147,2637.5,2636.9,4.5428]
[1727141876381,3.79163,2637.4,2636.7,3.79261]
[1727141876705,3.79144,2637.6,2637.0,3.79215]
[1727141876909,3.79144,2637.6,2637.1,0.07582895]
[1727141877221,3.79147,2637.5,2637.0,0.07582896]
[1727141877507,3.79144,2637.6,2637.0,0.07582926]
[1727141879018,3.79144,2637.6,2637.0,3.86800926]
[1727141879312,3.79144,2637.6,2637.0,4.63403119]
[1727141879480,2.03129216,2637.7,2637.0,4.63403119]
[1727141879481,2.03129216,2637.7,2637.1,3.79202]
[1727141879688,0.0485476,2637.7,2637.6,3.79132]
[1727141880490,0.0485476,2637.7,2637.5,3.79132]
[1727141880783,0.0485476,2637.7,2637.6,3.8671325]
[1727141880982,0.0485476,2637.7,2637.6,4.63297775]
[1727141882579,0.0485476,2637.7,2637.6,9.86741736]
[1727141882809,0.0485476,2637.7,2637.6,9.24160486]
[1727141882989,0.0485476,2637.7,2637.6,9.79160486]
[1727141883614,0.0485476,2637.7,2637.6,9.24160486]
[1727141884337,0.0485476,2637.7,2637.6,5.33526525]
[1727141884548,0.0485476,2637.7,2637.6,5.41106999]
[1727141884835,0.0485476,2637.7,2637.6,5.41107496]
[1727141885242,0.0485476,2637.7,2637.3,7.56982]
[1727141885406,0.0485476,2637.7,2637.4,3.86740224]
[1727141885900,0.0485476,2637.7,2637.5,3.79146]
[1727141886237,0.0485476,2637.7,2637.6,0.07581368]
[1727141886654,0.0485476,2637.7,2637.6,3.86713368]
[1727141886937,0.0485476,2637.7,2637.6,9.86743266]
[1727141887145,0.0485476,2637.7,2637.6,9.79161898]
[1727141887740,0.0485476,2637.7,2637.6,9.24161898]
[1727141888113,0.0485476,2637.7,2637.6,5.33527937]
[1727141888329,0.0485476,2637.7,2637.6,5.41108192]
[1727141888904,0.0485476,2637.7,2637.3,3.0]
[1727141888905,0.0485476,2637.7,2637.3,7.56978]
[1727141889250,0.0485476,2637.7,2637.1,3.79203]
[1727141889402,3.8397476,2637.7,2637.1,3.79203]
[1727141889609,4.5614,2637.6,2637.2,0.07582128]
[1727141889843,4.5614,2637.6,2637.1,0.07582568]
[1727141890040,4.5614,2637.6,2636.7,4.57068]
[1727141890041,4.56137,2637.6,2636.7,4.57068]
[1727141890204,4.56137,2637.6,2636.9,3.79223]
[1727141890205,0.06299079,2637.5,2636.9,3.79223]
[1727141890403,0.06299079,2637.5,2637.0,0.07583185]
[1727141890876,3.79164,2637.4,2636.9,0.07582515]
[1727141891227,0.06299079,2637.5,2636.9,0.07582515]
[1727141891562,3.79161,2637.4,2636.9,0.07582515]
[1727141891927,0.77,2637.1,2636.6,3.7927]
[1727141892252,0.77,2637.1,2636.6,0.758556]
[1727141892458,0.77,2637.1,2636.5,3.79286]
[1727141892640,0.77,2637.1,2636.6,0.07583893]
[1727141892827,0.77,2637.1,2636.6,3.86848893]
[1727141892828,0.8120696,2637.1,2636.6,3.86848893]
[1727141893184,0.8120696,2637.1,2636.9,3.7923]
[1727141893185,0.0420696,2637.1,2636.9,3.7923]
[1727141893464,0.0420696,2637.1,2637.0,0.07582896]
[1727141893664,0.0420696,2637.1,2637.0,3.86800896]
[1727141893875,0.10477752,2637.1,2637.0,4.63403986]
[1727141894227,0.0420696,2637.1,2637.0,4.63403986]
[1727141894430,0.10479885,2637.1,2637.0,4.63403986]
[1727141894932,0.10479885,2637.1,2637.0,0.84185986]
[1727141895229,0.10479885,2637.1,2636.5,3.79283]
[1727141895230,0.8372696,2637.1,2636.6,0.7971]
[1727141895433,0.90001248,2637.1,2636.5,3.79285]
[1727141896050,0.90001248,2637.1,2636.6,0.07583995]
[1727141896572,4.69206248,2637.1,2636.5,3.79285]
[1727141896775,3.79234,2636.9,2636.3,4.59025]
[1727141896934,3.79248,2636.8,2636.2,3.7933]
[1727141897126,0.7952,2636.7,2636.2,0.838383]
[1727141897555,0.06257236,2636.6,2636.2,0.91423372]
[1727141897837,0.06257236,2636.6,2636.1,3.79343]
[1727141898042,3.85534236,2636.6,2636.1,0.07585158]
[1727141898243,0.06257236,2636.6,2636.0,0.07585544]
[1727141898453,0.06257236,2636.6,2636.1,3.79347]
[1727141898675,0.06257236,2636.6,2636.2,0.07585672]
[1727141899558,0.06257236,2636.6,2636.5,3.7929]
[1727141899736,0.06257236,2636.6,2636.5,3.8687412]
[1727141899938,0.0420696,2636.8,2636.5,3.8687412]
[1727141900433,0.06060104,2636.7,2636.5,3.8687412]
[1727141900634,0.0420696,2636.8,2636.5,3.8687312]
[1727141900886,0.0420696,2636.8,2636.5,4.71462032]
[1727141901030,0.0420696,2636.8,2636.7,3.79261]
[1727141901234,0.0420696,2636.8,2636.7,3.86843811]
[1727141902666,0.0420696,2636.8,2636.5,4.63864912]
[1727141902976,0.0420696,2636.8,2636.5,0.0758445]
[1727141903960,0.0420696,2636.8,2636.5,3.8686045]
[1727141904149,0.0420696,2636.8,2636.5,0.0758445]
[1727141904350,0.0420696,2636.8,2636.5,3.8687445]
[1727141904739,0.06010921,2636.7,2636.5,3.8687445]
[1727141905094,0.0420696,2636.8,2636.2,0.38693067]
[1727141905373,0.0601024,2636.6,2636.0,3.86946664]
[1727141905578,0.85533604,2636.7,2636.2,3.7933]
[1727141905792,0.06013195,2636.5,2636.2,0.07585265]
[1727141905948,0.06016611,2636.6,2636.3,3.79318]
[1727141906148,0.7952,2636.7,2636.4,0.07584907]
[1727141906551,0.7952,2636.7,2636.3,3.86902895]
[1727141906735,0.7952,2636.7,2636.3,4.63527385]
[1727141907437,4.58783,2636.7,2636.2,0.07584871]
[1727141908340,4.58783,2636.7,2635.9,3.7937]
[1727141908341,3.79291,2636.5,2635.9,3.7937]
[1727141908778,3.8532173,2636.4,2635.7,8.385]
[1727141908978,4.5884,2636.3,2635.6,3.79417]
[1727141909201,4.5884,2636.3,2635.6,4.853013]
[1727141909362,0.06012848,2636.2,2635.6,4.853013]
[1727141909736,3.79348,2636.1,2635.3,4.5917]
[1727141909903,3.79348,2636.1,2635.1,3.79487]
[1727141909904,3.79406,2635.7,2635.1,3.79487]
[1727141910050,0.85496001,2636.0,2635.2,0.07587369]
[1727141910395,7.3737306,2636.1,2635.8,3.7939]
[1727141910559,0.0037306,2636.1,2635.8,3.7939]
[1727141910754,0.0037306,2636.1,2635.4,3.87028666]
[1727141910953,0.0037306,2636.1,2635.6,3.79419]
[1727141911994,0.05968188,2636.0,2635.6,3.79419]
[1727141912550,0.05968188,2636.0,2635.7,0.07587027]
[1727141912979,0.06341248,2636.0,2635.6,3.86992028]
[1727141913175,0.06341248,2636.0,2635.6,7.66399028]
[1727141913381,0.06341248,2636.0,2635.6,4.6876706]
[1727141914794,0.7952,2635.9,2635.3,3.79454]
[1727141914997,0.7952,2635.9,2635.7,3.79405]
[1727141915289,0.06341248,2636.0,2635.7,3.79405]
[1727141915290,0.05972813,2635.8,2635.7,3.79405]
[1727141915509,0.0037306,2636.0,2635.7,3.86992241]
[1727141915788,0.05965836,2635.8,2635.7,3.86992241]
[1727141915990,0.0037306,2636.0,2635.7,3.86992241]
[1727141916196,0.05966085,2635.8,2635.7,3.86992241]
[1727141916366,0.0037306,2636.0,2635.7,3.79405]
[1727141916544,0.05934285,2635.8,2635.7,3.79405]
[1727141916748,0.0037306,2636.0,2635.6,0.07587243]
[1727141916950,0.05933481,2635.8,2635.6,0.07587243]
[1727141917148,0.0037306,2636.0,2635.6,0.07587243]
[1727141917614,0.05935322,2635.9,2635.6,0.07587243]
[1727141917922,0.7952,2635.8,2635.4,3.79448]
[1727141918218,0.05933294,2635.7,2635.4,3.87035645]
[1727141918426,0.7952,2635.8,2635.4,3.87035645]
[1727141918579,0.05932746,2635.6,2635.4,3.87035645]
[1727141918779,0.7952,2635.8,2635.4,3.87035645]
[1727141919025,0.05932695,2635.7,2635.4,3.87035645]
[1727141919228,0.0037306,2636.0,2635.6,3.7942]
[1727141919425,0.0037306,2636.0,2635.7,0.07587044]
[1727141921054,0.0037306,2636.0,2635.9,3.79377]
[1727141921229,0.0037306,2636.0,2635.9,4.63597987]
[1727141923432,0.06307145,2636.0,2635.9,4.63597987]
[1727141923930,0.06307145,2636.0,2635.9,0.76635204]
[1727141924233,0.06307145,2636.0,2635.8,3.7938]
[1727141925027,0.06307145,2636.0,2635.6,4.5912]
[1727141925324,0.8094,2635.9,2635.5,3.87012618]
[1727141925683,0.05930149,2635.8,2635.5,3.87012618]
[1727141925829,0.8094,2635.9,2635.6,3.79418]
[1727141926021,0.0037306,2636.0,2635.8,3.79391]
[1727141926226,0.0037306,2636.0,2635.9,3.79377]
[1727141926963,0.0037306,2636.0,2635.8,3.86977615]
[1727141927324,0.0037306,2636.0,2635.6,3.79414]
[1727141927325,0.0037306,2636.0,2635.6,3.87000645]
[1727141927523,0.0037306,2636.0,2635.6,3.79414]
[1727141927726,3.7973806,2636.0,2635.3,0.379456]
[1727141928165,4.60332,2635.8,2635.2,7.58937]
[1727141928469,4.60332,2635.8,2635.2,3.79467]
[1727141928832,4.60332,2635.8,2635.4,3.79448]
[1727141928833,0.8094,2635.8,2635.4,3.79448]
[1727141929033,0.8094,2635.8,2635.4,3.79437]
[1727141929627,0.8094,2635.8,2635.5,3.870221]
[1727141929847,0.0037306,2636.0,2635.7,3.79396]
[1727141930042,0.0037306,2636.0,2635.8,3.79381]
[1727141930474,0.0037306,2636.0,2635.7,3.86982887]
[1727141931037,0.0037306,2636.0,2635.9,3.79377]
[1727141931286,0.0037306,2636.0,2635.9,3.86963252]
[1727141931572,0.0037306,2636.0,2635.9,4.63598677]
[1727141933144,0.0037306,2636.0,2635.9,5.34742425]
[1727141934343,0.0037306,2636.0,2635.9,3.86962973]
[1727141934736,0.06339407,2636.0,2635.9,3.86962973]
[1727141935065,0.06333684,2636.0,2635.9,3.79377]
[1727141935267,0.06333684,2636.0,2635.8,3.79387]
[1727141935468,0.06333684,2636.0,2635.9,3.79377]
[1727141936570,0.06333684,2636.0,2635.7,3.79391]
[1727141936775,0.06333684,2636.0,2635.5,3.79434]
[1727141936776,3.85698684,2636.0,2635.5,3.79434]
[1727141937558,0.06333684,2636.0,2635.5,3.79434]
[1727141937872,0.06333684,2636.0,2635.2,3.79466]
[1727141937873,3.85706684,2636.0,2635.2,3.79466]
[1727141938082,7.65080684,2636.0,2635.3,3.7945]
[1727141938376,3.85706684,2636.0,2635.3,7.58903]
[1727141938561,7.65080684,2636.0,2635.3,3.7945]
[1727141938971,3.79378,2635.9,2635.3,3.7945]
[1727141939130,3.79401,2635.8,2635.1,3.79486]
[1727141939332,3.79401,2635.8,2635.3,3.79457]
[1727141939333,0.05941967,2635.8,2635.3,3.79457]
[1727141939578,0.05941967,2635.8,2635.3,3.8704536]
[1727141939987,0.05941967,2635.8,2635.3,3.79457]
[1727141940196,3.85333967,2635.8,2635.3,3.79457]
[1727141940510,3.79432,2635.6,2635.0,3.79504]
[1727141940724,0.7692,2635.5,2634.6,0.8213]
[1727141940925,0.7692,2635.5,2635.0,3.79493]
[1727141941100,0.05913397,2635.4,2635.0,3.79493]
[1727141941275,0.05913397,2635.4,2634.8,3.79525]
[1727141941476,3.85362397,2635.4,2634.8,3.79525]
[1727141941673,0.05913397,2635.4,2635.0,3.79505]
[1727141943085,0.05913397,2635.4,2634.9,3.79519]
[1727141943297,0.05913397,2635.4,2634.8,3.79525]
[1727141943591,3.85365397,2635.4,2634.7,3.79539]
[1727141943793,0.7692,2635.1,2634.5,3.79575]
[1727141944041,0.7692,2635.1,2634.4,3.79591]
[1727141944343,0.7692,2635.1,2634.0,0.8213]
[1727141944344,3.85410549,2635.0,2634.2,3.79616]
[1727141944536,0.7692,2634.7,2634.2,3.79616]
[1727141944703,0.7692,2634.7,2634.3,3.79607]
[1727141945033,0.05892487,2634.6,2634.3,3.79607]
[1727141945324,0.05892487,2634.6,2634.1,3.79627]
[1727141945544,0.05892487,2634.6,2634.2,3.79619]
[1727141946593,0.05892487,2634.6,2634.0,3.79645]
[1727141946903,3.85457487,2634.6,2634.0,3.79645]
[1727141947106,0.05892487,2634.6,2634.1,0.0759189]
[1727141947430,0.05892487,2634.6,2634.1,3.79636]
[1727141947792,0.05892487,2634.6,2634.0,3.87229955]
[1727141948239,3.85457487,2634.6,2634.0,3.87229955]
[1727141948543,3.85457487,2634.6,2634.0,3.79638]
[1727141949037,0.7692,2634.4,2634.0,3.79647]
[1727141949207,0.7692,2634.4,2634.1,3.79635]
[1727141949411,0.7692,2634.7,2634.1,0.84279408]
[1727141949623,0.05785446,2634.3,2634.2,4.61739]
[1727141949937,0.7692,2634.7,2634.3,7.59193]
[1727141950101,0.7692,2634.7,2634.3,3.79593]
[1727141950502,0.7692,2634.7,2634.2,3.87211934]
[1727141951239,0.7692,2634.7,2634.1,0.76687401]
[1727141951538,0.7692,2634.7,2634.2,3.79619]
[1727141951844,0.7692,2635.0,2634.6,3.79564]
[1727141952024,0.7692,2635.0,2634.2,0.54918866]
[1727141952025,0.7692,2635.0,2634.7,3.79546]
[1727141952226,0.05802412,2634.9,2634.7,3.79546]
[1727141952426,0.05802412,2634.9,2634.6,3.79564]
[1727141952600,0.05802412,2634.9,2634.5,3.87155404]
[1727141952794,0.05802412,2634.9,2634.5,3.79565]
[1727141953415,0.05802412,2634.9,2634.6,3.87150415]
[1727141953641,0.05802412,2634.9,2634.8,3.79535]
[1727141953821,0.05802412,2634.9,2634.8,3.87124435]
[1727141954136,0.7692,2635.3,2635.0,3.79503]
[1727141954345,0.7692,2635.3,2635.0,3.87092351]
[1727141954501,0.7692,2635.3,2635.0,3.79503]
[1727141954905,0.7692,2635.3,2634.9,0.0758937]
[1727141955067,0.7692,2635.3,2634.9,3.8710937]
[1727141955722,0.05808047,2635.2,2634.9,3.8710937]
[1727141956023,0.05807105,2635.1,2634.9,3.8710937]
[1727141956232,0.7692,2635.3,2634.9,3.8710937]
[1727141956528,0.05807054,2635.2,2634.9,3.8710937]
[1727141956723,0.05807054,2635.2,2634.6,3.79558]
[1727141956724,3.79487,2635.2,2634.6,3.79558]
[1727141956934,0.05806361,2635.1,2634.6,3.79558]
[1727141957130,3.85298361,2635.1,2634.6,3.79558]
[1727141957615,0.05806361,2635.1,2634.7,3.79549]
[1727141957815,3.79493,2635.1,2634.4,7.59168]
[1727141958060,0.05804931,2635.0,2634.5,0.07590349]
[1727141958214,4.56392,2635.3,2634.6,3.79561]
[1727141958651,3.85289062,2635.2,2634.6,3.79561]
[1727141959079,0.05807062,2635.2,2634.6,3.79561]
[1727141959914,0.05807062,2635.2,2634.8,3.79532]
[1727141960046,0.7692,2635.3,2634.9,0.075895]
[1727141960383,0.05806318,2635.2,2635.0,3.79505]
[1727141960887,0.05805624,2635.1,2635.0,3.79505]
[1727141961177,0.7692,2635.3,2635.0,3.79505]
[1727141961389,0.05805872,2635.1,2635.0,3.79505]
[1727141961547,0.7692,2635.3,2635.0,3.79505]
[1727141961749,0.05832437,2635.1,2635.0,4.63834442]
[1727141962063,0.7746,2635.6,2635.1,3.79486]
[1727141962465,0.7746,2635.6,2635.2,3.79474]
[1727141963167,3.7746,2635.9,2635.2,3.79467]
[1727141963684,0.7746,2635.6,2635.0,3.79497]
[1727141963894,0.7746,2635.6,2634.7,0.7696]
[1727141963895,0.05835955,2635.5,2634.7,0.7696]
[1727141964101,0.05835955,2635.5,2634.3,6.79603]
[1727141964102,3.79458,2635.4,2634.8,3.79531]
[1727141964412,0.05826522,2635.3,2634.8,3.79531]
[1727141965397,3.85290522,2635.3,2634.6,7.59113]
[1727141965599,3.85290522,2635.3,2634.6,3.79552]
[1727141965988,3.85292522,2635.3,2634.6,3.79552]
[1727141966201,0.7746,2635.2,2634.4,3.79585]
[1727141966381,3.79518,2635.0,2634.4,3.79585]
[1727141966613,0.7746,2635.0,2634.0,3.79643]
[1727141966797,0.7746,2634.5,2633.8,4.56635]
[1727141966976,0.7746,2634.5,2633.9,0.45958284]
[1727141967177,0.7746,2634.5,2633.8,4.56635]
[1727141967178,0.05819091,2634.4,2633.8,4.56635]
[1727141967511,3.85425091,2634.4,2633.8,3.79675]
[1727141967677,3.79618,2634.3,2633.7,0.0294784]
[1727141967877,3.85434434,2634.3,2633.7,0.0294784]
[1727141968679,0.05816434,2634.3,2633.7,3.8263684]
[1727141968880,0.05816434,2634.3,2633.8,3.79676]
[1727141970293,0.05816434,2634.3,2633.7,0.0294784]
[1727141970294,0.7746,2634.2,2633.7,0.0294784]
[1727141970494,3.79679,2633.8,2633.7,0.0294784]
[1727141970726,3.85491448,2633.8,2633.7,0.0294784]
[1727141971246,7.62951448,2633.8,2633.7,0.0294784]
[1727141971812,8.17951448,2633.8,2633.7,0.0294784]
[1727141972941,10.15568385,2633.8,2633.7,0.0294784]
[1727141973252,8.17951448,2633.8,2633.7,0.0294784]
[1727141976940,12.08585409,2633.8,2633.7,0.0294784]
[1727141977398,12.08585409,2633.8,2633.0,0.0379964]
[1727141977399,7.3478,2633.1,2633.0,0.0379964]
[1727141977679,13.41728416,2633.1,2633.0,0.0379964]
[1727141978988,13.31088416,2633.1,2632.2,0.0379964]
[1727141979155,6.79895,2632.3,2632.2,0.0379964]
[1727141979352,7.63007663,2632.3,2632.2,0.0379964]
[1727141981304,0.83112663,2632.3,2632.2,0.0379964]
[1727141981449,0.05652663,2632.3,2632.2,0.0379964]
[1727141982085,6.85547663,2632.3,2632.2,0.0379964]
[1727141982758,0.05652663,2632.3,2632.2,0.0379964]
[1727141982976,7.57316,2632.6,2632.2,0.0379964]
[1727141983199,0.05551724,2632.3,2632.2,0.0379964]
[1727141983500,3.85450917,2632.3,2632.2,0.0379964]
[1727141984287,6.85450917,2632.3,2632.2,0.0379964]
[1727141986995,3.05555917,2632.3,2632.2,0.0379964]
[1727141987201,0.05555917,2632.3,2632.2,0.0379964]
[1727141987610,6.85450917,2632.3,2632.2,0.0379964]
[1727141987779,0.05555917,2632.3,2632.2,0.0379964]
[1727141989107,6.85450917,2632.3,2632.2,0.0379964]
[1727141990060,0.05555917,2632.3,2632.2,0.0379964]
[1727141990320,6.85450917,2632.3,2632.2,0.0379964]
[1727141996790,0.05555917,2632.3,2632.2,0.0379964]
[1727141997097,0.05555917,2632.3,2632.2,0.8382964]
[1727141997285,4.57992,2632.9,2632.2,0.8382964]
[1727141997486,3.7984,2632.7,2632.2,0.8382964]
[1727141997682,0.05544224,2632.6,2632.2,0.8382964]
[1727141998421,3.05544224,2632.6,2632.2,0.8382964]
[1727142000022,0.05544224,2632.6,2632.2,0.8382964]
[1727142000267,0.05544224,2632.6,2632.4,3.79879]
[1727142000556,6.96723937,2633.2,2632.3,3.79882]
[1727142000557,3.79797,2633.0,2632.3,3.79882]
[1727142000720,3.79825,2632.8,2632.2,1.30204004]
[1727142001057,3.79812,2632.9,2632.3,3.79894]
[1727142001925,6.79809,2632.9,2632.3,3.79894]
[1727142002357,3.79797,2633.0,2632.2,1.30204004]
[1727142002358,3.79862,2632.6,2632.2,0.8382964]
[1727142002559,7.58529,2632.6,2632.2,0.0379964]
[1727142002854,3.79883,2632.4,2632.2,0.0379964]
[1727142003654,7.58529,2632.6,2632.2,0.0379964]
[1727142003655,3.79895,2632.3,2632.2,0.0379964]
[1727142003957,0.05556249,2632.3,2632.2,0.0379964]
[1727142005554,3.85451249,2632.3,2632.2,0.0379964]
[1727142005758,0.05556249,2632.3,2632.2,0.0379964]
[1727142007016,3.79827,2632.8,2632.2,0.0379964]
[1727142007017,3.79827,2632.8,2632.2,3.8370964]
[1727142007220,0.05544917,2632.3,2632.2,3.8370964]
[1727142007458,3.79833,2632.8,2632.2,0.88265004]
[1727142007681,3.8545122,2632.3,2632.2,0.0379964]
[1727142007820,3.79895,2632.3,2632.2,0.0379964]
[1727142008020,6.85438732,2632.3,2632.2,0.0379964]
[1727142008520,7.40438732,2632.3,2632.2,0.0379964]
[1727142009748,6.85438732,2632.3,2632.2,0.0379964]
[1727142011566,3.05543732,2632.3,2632.2,0.0379964]
[1727142011791,6.85438732,2632.3,2632.2,0.0379964]
[1727142012667,0.05543732,2632.3,2632.2,0.0379964]
[1727142012832,0.05543732,2632.3,2632.2,4.6472964]
[1727142013030,0.05543732,2632.3,2632.2,5.42897098]
[1727142013266,3.79811,2632.9,2632.3,3.79893]
[1727142013474,3.79834,2632.8,2632.2,1.62987098]
[1727142013989,7.59668,2632.8,2632.2,0.8481964]
[1727142014142,3.79834,2632.8,2632.2,4.6472864]
[1727142014343,3.0,2632.8,2632.3,3.79895]
[1727142014660,3.0,2632.9,2632.4,3.7988]
[1727142014867,3.0,2632.9,2632.5,3.79865]
[1727142015066,3.79771,2633.2,2632.5,3.79865]
[1727142015067,0.05550383,2632.8,2632.6,1.536445]
[1727142015318,0.05550383,2632.8,2632.6,5.334945]
[1727142015690,0.0555509,2632.7,2632.6,5.334945]
[1727142016030,3.79771,2633.2,2632.7,3.79837]
[1727142016230,3.79771,2633.2,2632.6,0.7767]
[1727142016434,3.79783,2633.1,2632.6,0.7767]
[1727142016630,3.79796,2633.0,2632.6,0.7767]
[1727142016990,3.79847,2632.7,2632.3,0.7767]
[1727142017413,3.79833,2632.8,2632.3,0.7767]
[1727142018639,3.79838,2632.7,2632.3,0.7767]
[1727142019128,3.79833,2632.8,2632.3,0.7767]
[1727142019891,1.97949027,2633.0,2632.3,0.7767]
[1727142020220,3.79895,2632.3,2632.2,0.0379964]
[1727142020793,6.79895,2632.3,2632.2,0.0379964]
[1727142021246,7.34895,2632.3,2632.2,0.0379964]
[1727142021403,9.32844027,2632.3,2632.2,0.0379964]
[1727142021740,7.34895,2632.3,2632.2,0.0379964]
[1727142022597,9.72433833,2632.3,2632.2,0.0379964]
[1727142022793,6.79895,2632.3,2632.2,0.0379964]
[1727142023999,8.78390512,2632.3,2632.2,0.0379964]